bitfinex/quotes_ETHUSD_20260308
["timestamp","ask_amount","ask_price","bid_price","bid_amount"]
[1772938265726,0.49243815,1940.6,1939.1,1.28923184]
[1772938266232,0.49243815,1940.6,1939.0,5.15857047]
[1772938266233,0.49243815,1940.6,1939.0,0.00153886]
[1772938266403,0.49243815,1940.6,1939.0,1.29081037]
[1772938266720,0.00153886,1941.0,1939.0,0.06707486]
[1772938266897,0.00153886,1941.0,1939.2,0.10170498]
[1772938267096,0.49243815,1941.7,1939.4,0.10016612]
[1772938267304,0.34546179,1941.8,1940.1,2.6708354]
[1772938267524,0.49243815,1941.8,1940.2,1.13]
[1772938268026,0.49243815,1941.8,1938.1,1.28992312]
[1772938268027,0.49243815,1940.5,1938.1,1.28992312]
[1772938268322,0.49243815,1940.5,1938.0,1.29149985]
[1772938268323,0.49243815,1939.8,1938.0,1.29149985]
[1772938268617,0.49243815,1939.8,1938.1,2.29861299]
[1772938268821,0.49243815,1939.8,1938.2,1.28985656]
[1772938269387,0.54967608,1938.3,1935.6,2.57066928]
[1772938269621,0.14948499,1939.0,1935.3,1.29178938]
[1772938269622,0.54967608,1937.3,1935.3,1.29178938]
[1772938269823,0.065536,1937.0,1935.2,0.860364]
[1772938270007,0.065536,1937.0,1935.2,2.15220273]
[1772938270008,0.54967608,1936.7,1935.2,2.15220273]
[1772938270589,0.00153886,1937.0,1935.2,2.15220273]
[1772938270985,0.55121494,1938.0,1935.3,0.065536]
[1772938271220,0.49243815,1938.8,1936.4,0.065536]
[1772938271436,0.49243815,1938.8,1937.0,0.00153886]
[1772938271997,0.49243815,1938.6,1937.0,0.00153886]
[1772938272907,0.49243815,1938.4,1937.0,0.00153886]
[1772938273130,0.49243815,1939.8,1937.1,0.47092547]
[1772938273308,0.49243815,1939.8,1937.0,0.00153886]
[1772938273309,0.49243815,1939.8,1937.3,0.47092547]
[1772938273525,0.49243815,1938.5,1937.0,0.00153886]
[1772938273842,0.49243815,1938.1,1937.0,0.00153886]
[1772938274314,0.00153886,1939.0,1937.0,0.00153886]
[1772938275046,0.55951301,1939.0,1937.0,0.00153886]
[1772938275205,5.15676567,1939.3,1937.0,0.47246433]
[1772938275206,1.28914867,1939.3,1937.0,0.47246433]
[1772938275405,0.49243815,1940.2,1938.0,0.47246433]
[1772938275607,1.28864032,1940.1,1938.2,0.47092547]
[1772938275828,1.28863327,1940.1,1938.2,0.47092547]
[1772938276112,2.71565453,1940.7,1938.2,0.47092547]
[1772938276308,2.71565453,1940.7,1938.4,0.47092547]
[1772938276309,1.28836558,1940.5,1938.4,0.47092547]
[1772938276512,1.2886513,1940.1,1938.4,0.47092547]
[1772938276957,0.49243815,1940.8,1938.5,1.76058242]
[1772938277236,5.1518092,1941.1,1938.6,0.47092547]
[1772938277237,1.28806223,1940.9,1938.6,0.47092547]
[1772938277405,5.15374425,1941.0,1939.1,0.47092547]
[1772938277406,0.00153886,1941.0,1939.1,0.47092547]
[1772938277613,1.28957782,1941.0,1939.1,0.47092547]
[1772938277907,0.00153886,1941.0,1939.3,0.47092547]
[1772938278113,0.00153886,1941.0,1939.5,0.47092547]
[1772938278469,0.00153886,1941.0,1939.7,0.47092547]
[1772938278835,1.28955208,1941.0,1939.0,0.47246433]
[1772938279004,0.00153886,1941.0,1939.1,1.2892579]
[1772938279838,0.00153886,1941.0,1939.2,0.47092547]
[1772938280537,0.00153886,1941.0,1939.1,1.2892579]
[1772938281105,0.00153886,1941.0,1939.0,0.47246433]
[1772938283153,0.00153886,1941.0,1939.1,1.2892579]
[1772938283356,0.00153886,1941.0,1939.2,0.53646147]
[1772938285154,0.00153886,1941.0,1939.7,0.53646147]
[1772938285331,0.00153886,1941.0,1939.8,1.75392547]
[1772938285530,0.00153886,1941.0,1939.8,1.283]
[1772938285744,0.00153886,1941.0,1939.9,0.47092547]
[1772938285944,0.001,1941.8,1939.9,0.47092547]
[1772938286139,2.24616808,1941.6,1940.0,0.00153886]
[1772938286328,2.91392383,1941.5,1940.0,0.00153886]
[1772938286531,2.91392383,1941.4,1940.0,0.47246433]
[1772938286731,0.001,1941.8,1940.2,0.47092547]
[1772938287276,0.001,1941.8,1940.3,1.28846054]
[1772938287630,0.49397701,1943.0,1940.4,0.47092547]
[1772938287830,5.14724343,1942.9,1941.0,0.00153886]
[1772938288062,5.14724343,1942.9,1941.1,1.311]
[1772938288366,1.8625364,1942.8,1941.1,1.311]
[1772938288541,0.49243815,1942.7,1941.1,1.311]
[1772938289326,1.28693503,1942.6,1941.2,1.28786317]
[1772938290149,2.35497455,1942.4,1941.2,1.28786317]
[1772938290350,0.49243815,1942.3,1941.0,1.28953298]
[1772938291331,1.28720008,1942.2,1941.0,0.00153886]
[1772938292069,1.28680255,1942.8,1941.0,0.47246433]
[1772938293485,1.28680255,1942.8,1941.1,1.77991646]
[1772938294154,0.47305355,1942.7,1941.1,1.28792952]
[1772938294865,1.28680255,1942.8,1941.1,1.77991646]
[1772938295066,1.28680255,1942.8,1941.2,0.49198694]
[1772938295542,0.00153886,1943.0,1941.3,1.28779683]
[1772938295744,0.00153886,1943.0,1941.4,1.312]
[1772938296372,0.14948499,1942.6,1941.0,0.00153886]
[1772938296666,0.14948499,1942.6,1940.3,0.49198694]
[1772938296667,0.63312826,1942.5,1940.3,0.49198694]
[1772938296836,0.00153886,1942.0,1940.5,0.49198694]
[1772938297040,0.00153886,1942.0,1940.7,0.49198694]
[1772938297578,0.00153886,1942.0,1941.1,0.49198694]
[1772938297748,0.00153886,1942.0,1941.3,0.49198694]
[1772938298266,0.00153886,1943.0,1941.3,0.49198694]
[1772938298574,0.00153886,1943.0,1941.2,1.311]
[1772938298575,0.00153886,1943.0,1941.5,0.49198694]
[1772938298766,0.00153886,1943.0,1941.7,0.49198694]
[1772938299648,0.00153886,1943.0,1941.8,1.77945217]
[1772938299849,0.00153886,1943.0,1941.9,0.49198694]
[1772938300778,1.28624927,1943.7,1941.9,0.54348289]
[1772938300948,1.28624927,1943.7,1942.1,0.49198694]
[1772938301279,0.00153886,1944.0,1942.1,0.49198694]
[1772938301280,1.28610355,1943.9,1942.1,0.49198694]
[1772938301657,0.00153886,1944.0,1942.4,1.77905448]
[1772938302055,0.001,1942.7,1942.4,1.77905448]
[1772938302255,0.00153886,1944.0,1942.5,0.49198694]
[1772938302866,0.47305355,1943.8,1942.4,1.28706754]
[1772938303079,2.51362825,1943.9,1942.4,1.28706754]
[1772938303080,0.00153886,1944.0,1942.4,1.77905448]
[1772938304868,0.065536,1943.8,1942.4,0.0514827]
[1772938305072,0.47305355,1943.4,1942.0,1.2888555]
[1772938305400,0.05148285,1943.3,1942.0,1.2888555]
[1772938305552,0.05148285,1943.3,1942.1,1.339]
[1772938305877,1.3379995,1943.3,1942.2,1.28720008]
[1772938307251,1.28651665,1943.3,1942.2,1.28720008]
[1772938307452,1.75950121,1943.4,1942.2,1.28720008]
[1772938307652,0.05148285,1943.3,1942.2,1.28720008]
[1772938307852,1.28653766,1943.2,1942.2,1.28720008]
[1772938308078,0.05148285,1943.1,1942.2,1.28720008]
[1772938308496,1.28652105,1943.3,1942.2,1.28720008]
[1772938308855,0.05148285,1943.2,1942.2,1.28720008]
[1772938309189,0.05148285,1943.3,1942.2,1.77918702]
[1772938309382,0.05148285,1943.8,1942.3,0.49198694]
[1772938309789,1.337642,1943.8,1942.4,1.28706754]
[1772938310094,1.337642,1943.8,1942.0,6.69433918]
[1772938310095,0.47305355,1943.0,1942.0,0.00153886]
[1772938310388,0.47305355,1943.0,1941.2,1.28786317]
[1772938310389,0.47305355,1942.8,1941.2,1.28786317]
[1772938310567,0.5245364,1942.8,1941.2,1.28786317]
[1772938310958,0.47305355,1942.8,1941.2,1.28786317]
[1772938311158,0.5245364,1942.8,1941.2,1.28786317]
[1772938311877,0.47305355,1942.6,1941.0,5.15299156]
[1772938313659,0.47305355,1942.5,1941.0,1.28953473]
[1772938313857,0.47305355,1942.3,1941.0,1.28953473]
[1772938314290,1.8625364,1941.8,1940.8,0.0041]
[1772938314494,0.47305355,1941.3,1940.0,1.29017875]
[1772938314862,0.47305355,1941.3,1941.1,0.0011]
[1772938315064,0.47305355,1941.3,1940.0,1.29017875]
[1772938315263,0.47305355,1941.3,1941.0,0.0011]
[1772938315459,0.47305355,1941.3,1940.0,1.29017875]
[1772938315460,0.47305355,1941.3,1940.8,0.0011]
[1772938315682,0.47305355,1941.3,1940.0,0.00153886]
[1772938315683,0.47305355,1940.8,1940.0,0.00153886]
[1772938315886,1.76124853,1940.7,1940.0,0.00153886]
[1772938316060,0.47305355,1940.6,1940.0,0.00153886]
[1772938317253,1.28819498,1940.7,1940.0,0.00153886]
[1772938317254,5.15150966,1941.2,1940.0,0.00153886]
[1772938317496,5.62456321,1941.2,1940.0,0.00153886]
[1772938317670,0.47305355,1941.1,1940.0,0.00153886]
[1772938318057,1.76104942,1941.0,1940.0,0.00153886]
[1772938318891,3.80126918,1941.6,1940.0,0.4935258]
[1772938319264,1.339058,1941.7,1940.0,0.4935258]
[1772938319494,1.3390183,1941.7,1940.0,0.4935258]
[1772938320003,0.47305355,1941.4,1940.0,0.00153886]
[1772938320175,1.76085038,1941.3,1940.0,0.00153886]
[1772938320566,2.33558995,1941.2,1940.0,0.00153886]
[1772938320761,1.28779683,1941.3,1940.0,0.4935258]
[1772938320967,0.00153886,1942.0,1940.2,0.49198694]
[1772938321183,1.3403599,1942.0,1940.2,0.49198694]
[1772938321394,1.3403599,1942.0,1940.4,0.49198694]
[1772938321789,1.81341345,1942.0,1940.3,1.314]
[1772938322159,1.7619306,1942.0,1940.4,1.28839414]
[1772938322377,0.05148285,1941.9,1940.5,0.48013287]
[1772938322617,0.05148285,1941.8,1940.4,1.28839414]
[1772938322906,0.05148285,1941.7,1940.4,1.28839414]
[1772938323201,0.49425469,1941.5,1940.0,1.29015755]
[1772938323793,0.05148285,1941.4,1940.0,1.29015755]
[1772938324106,1.28779683,1941.3,1940.0,0.00153886]
[1772938324274,0.05148285,1941.2,1940.0,0.00153886]
[1772938324895,0.05148285,1941.2,1940.0,0.48167173]
[1772938325797,1.28746523,1941.8,1940.0,0.48167173]
[1772938325971,0.05148285,1941.7,1940.0,0.48167173]
[1772938326171,1.33907548,1941.7,1940.2,0.48013287]
[1772938326983,1.33903364,1941.7,1940.2,0.48013287]
[1772938327400,0.001,1941.3,1940.2,0.48013287]
[1772938328410,0.001,1941.3,1940.3,1.76859341]
[1772938328712,0.001,1941.3,1940.2,1.28847534]
[1772938329914,0.001,1941.3,1940.1,1.28968593]
[1772938329915,0.49525469,1941.3,1940.1,1.28968593]
[1772938330088,0.05148285,1941.2,1940.1,1.28968593]
[1772938330289,1.28786317,1941.2,1940.1,0.0011]
[1772938330494,0.05148285,1941.1,1940.1,0.0011]
[1772938331909,5.1524527,1941.3,1940.1,0.0011]
[1772938331910,1.34032722,1941.3,1940.1,0.48123287]
[1772938332081,0.05148285,1941.2,1940.1,0.48123287]
[1772938332285,0.05248285,1941.3,1940.2,1.76865982]
[1772938332503,0.001,1941.3,1940.3,0.48013287]
[1772938332706,5.15016373,1941.7,1940.5,0.48013287]
[1772938332707,1.28757014,1941.7,1940.5,0.48013287]
[1772938332895,0.05148285,1941.6,1940.5,0.48013287]
[1772938334424,0.05148285,1941.6,1940.7,0.48013287]
[1772938334425,1.28766417,1941.5,1940.7,0.48013287]
[1772938334587,0.05148285,1941.4,1940.7,0.48013287]
[1772938335197,1.33901277,1941.8,1940.7,0.48013287]
[1772938335791,1.33901277,1941.8,1940.4,1.345]
[1772938335792,3.57490842,1941.8,1940.4,2.63334014]
[1772938335999,3.57490842,1941.8,1940.4,2.63634014]
[1772938336926,3.57490842,1941.8,1940.4,2.63638723]
[1772938337501,3.57490842,1941.8,1940.4,3.1165201]
[1772938337725,3.57490842,1941.8,1940.5,0.48013287]
[1772938338542,3.57490842,1941.8,1940.6,1.28826136]
[1772938339107,3.57490842,1941.8,1940.5,1.76840957]
[1772938339321,3.57490842,1941.8,1940.5,0.48013287]
[1772938339522,3.57490842,1941.8,1940.5,1.76845272]
[1772938339702,0.001,1941.7,1940.5,1.76845272]
[1772938340227,0.05248285,1941.7,1940.6,0.48013287]
[1772938340618,1.28759785,1941.6,1940.7,1.28819498]
[1772938340822,0.05148285,1941.5,1940.7,1.28819498]
[1772938341606,0.05148285,1941.5,1940.7,1.76832785]
[1772938342622,1.2877305,1941.4,1940.7,1.76832785]
[1772938342826,0.05148285,1941.3,1940.7,1.76832785]
[1772938343424,0.05148285,1941.3,1940.4,1.348]
[1772938343625,0.05148285,1941.3,1940.5,0.48013287]
[1772938344844,1.28786317,1941.2,1940.5,1.76841752]
[1772938345010,0.05148285,1941.1,1940.5,1.76841752]
[1772938345337,0.05148285,1941.1,1940.6,0.48013287]
[1772938345721,1.33934602,1941.2,1940.6,0.48013287]
[1772938347240,1.33934602,1941.2,1940.6,1.76833594]
[1772938348244,1.28857623,1941.7,1940.8,0.48013287]
[1772938349153,1.28857623,1941.7,1940.9,1.28806223]
[1772938349154,0.001,1941.7,1940.9,1.28806223]
[1772938349313,0.001,1941.7,1941.0,0.48013287]
[1772938350321,0.001,1942.7,1941.0,0.48013287]
[1772938350646,0.001,1942.7,1941.2,0.48013287]
[1772938350821,0.001,1942.7,1941.4,0.48013287]
[1772938351340,0.001,1942.7,1941.6,0.48013287]
[1772938351507,0.001,1942.7,1941.5,1.28766417]
[1772938351710,0.001,1942.7,1941.6,0.48013287]
[1772938353230,0.001,1942.7,1941.7,1.28753154]
[1772938353424,0.001,1942.7,1941.8,0.45026743]
[1772938355343,0.001,1942.7,1942.0,0.45026743]
[1772938355543,0.00153886,1943.0,1942.2,0.45026743]
[1772938357214,0.00153886,1943.0,1942.4,0.45026743]
[1772938357647,0.00153886,1944.0,1942.4,0.45026743]
[1772938358660,0.00153886,1944.0,1942.6,0.45026743]
[1772938359128,0.00153886,1944.0,1942.7,0.45026743]
[1772938359452,0.00153886,1944.0,1942.9,0.45026743]
[1772938360024,0.00153886,1944.0,1942.8,1.28680255]
[1772938360025,0.00153886,1944.0,1943.1,0.45026743]
[1772938361252,0.00153886,1944.0,1943.2,1.28653766]
[1772938361555,0.00153886,1944.0,1943.3,0.45026743]
[1772938362358,0.00153886,1944.0,1943.1,1.28657692]
[1772938362528,0.00153886,1944.0,1942.9,0.45026743]
[1772938362716,0.00153886,1944.0,1942.9,3.0700026]
[1772938363142,0.00153886,1944.0,1942.9,1.333]
[1772938363340,1.28614054,1943.8,1942.9,1.333]
[1772938363642,1.28614054,1943.8,1942.9,2.61973523]
[1772938364968,1.28614054,1943.8,1942.9,1.333]
[1772938365468,0.38216004,1943.7,1942.9,1.11838222]
[1772938367453,1.28627289,1943.6,1942.9,1.11838222]
[1772938369644,5.14509158,1943.8,1942.9,1.9215332]
[1772938369849,5.14509158,1943.8,1942.9,3.20825716]
[1772938370970,3.80910206,1943.9,1942.9,3.20825716]
[1772938370971,1.28710076,1943.9,1943.1,0.80315098]
[1772938371669,0.001,1943.9,1943.2,2.08968864]
[1772938372266,0.001,1943.9,1943.2,0.80315098]
[1772938373085,1.86970348,1943.9,1942.8,0.80315098]
[1772938373648,1.28614054,1943.8,1942.8,0.80315098]
[1772938374291,1.28614054,1943.8,1942.5,1.28694302]
[1772938374449,1.33320544,1943.8,1942.4,2.09021439]
[1772938374847,1.33320544,1943.8,1942.5,0.80315098]
[1772938375351,1.28614054,1943.8,1942.5,0.80315098]
[1772938376279,1.28614054,1943.8,1942.7,0.80315098]
[1772938377288,1.28614054,1943.8,1942.8,0.0011]
[1772938377591,0.001,1943.7,1942.8,0.0011]
[1772938380395,0.23666482,1943.7,1942.8,0.0011]
[1772938380558,1.28627289,1943.6,1942.8,0.0011]
[1772938381458,1.28627289,1943.6,1942.8,0.80425098]
[1772938381804,0.001,1943.7,1942.8,0.80425098]
[1772938382106,1.28722551,1943.7,1942.8,0.80425098]
[1772938382590,0.001,1943.7,1942.9,1.28673632]
[1772938382789,0.001,1943.7,1943.0,0.96156033]
[1772938383181,0.001,1943.9,1943.0,0.96156033]
[1772938384878,0.001,1943.9,1943.2,0.96156033]
[1772938385083,0.001,1943.9,1943.1,1.28660388]
[1772938385084,0.001,1943.9,1943.4,0.96156033]
[1772938386513,0.001,1943.9,1943.3,1.309]
[1772938386868,0.001,1943.9,1942.8,5.14778039]
[1772938386869,1.80201268,1943.7,1942.8,0.0011]
[1772938387612,1.80201268,1943.4,1942.7,0.0011]
[1772938387812,0.001,1943.9,1942.7,0.96266033]
[1772938388023,1.80201268,1943.8,1942.7,0.0011]
[1772938388429,2.30973952,1943.8,1942.7,0.0011]
[1772938388934,1.28620671,1943.7,1942.7,0.0011]
[1772938389928,1.28620671,1943.7,1942.7,0.96266033]
[1772938391314,1.28620671,1943.7,1942.7,2.24952595]
[1772938392324,1.28620671,1943.7,1942.8,0.96156033]
[1772938392521,1.28620671,1943.7,1942.8,0.96266033]
[1772938392893,1.28620671,1943.7,1942.8,0.0011]
[1772938394026,1.80201268,1943.5,1942.8,0.0011]
[1772938395006,1.28640526,1943.4,1942.8,0.0011]
[1772938395213,1.28640526,1943.4,1942.5,0.96266033]
[1772938395395,2.04583648,1943.4,1942.5,0.0011]
[1772938396700,1.28640526,1943.4,1942.5,2.24962677]
[1772938397039,1.28640526,1943.4,1942.6,0.96156033]
[1772938397432,1.28620671,1943.7,1942.6,0.96156033]
[1772938398313,5.14582687,1943.8,1942.6,0.96156033]
[1772938398508,1.28620671,1943.7,1942.6,0.96156033]
[1772938399132,5.14582687,1943.8,1942.7,2.24842912]
[1772938399434,5.14582687,1943.8,1942.8,0.96156033]
[1772938401342,1.80201268,1943.2,1942.5,0.0011]
[1772938401533,2.69818095,1943.2,1942.5,0.0011]
[1772938403438,1.28660388,1943.1,1942.5,0.0011]
[1772938404328,1.28660388,1943.1,1942.5,0.96266033]
[1772938404525,5.14540819,1943.5,1942.5,0.96266033]
[1772938405647,1.28733907,1943.6,1942.6,0.96266033]
[1772938407945,1.28733907,1943.6,1942.7,0.96156033]
[1772938411663,1.28733907,1943.6,1942.7,2.24841513]
[1772938412066,1.28733907,1943.6,1942.8,0.96156033]
[1772938413068,1.28733907,1943.6,1942.6,0.0011]
[1772938413236,2.43944654,1943.6,1942.6,0.0011]
[1772938413441,1.80201268,1943.4,1942.6,0.0011]
[1772938414067,1.28647146,1943.3,1942.6,0.0011]
[1772938414657,1.28647146,1943.3,1942.7,1.2711471]
[1772938415258,5.14553282,1943.5,1942.7,1.2711471]
[1772938416235,1.28733907,1943.6,1942.8,2.55794965]
[1772938416236,0.001,1943.6,1942.8,2.55794965]
[1772938416444,0.001,1943.6,1942.9,1.2711471]
[1772938418272,0.001,1943.6,1943.1,1.2711471]
[1772938419145,0.001,1943.8,1943.1,1.2711471]
[1772938420347,0.001,1943.8,1943.3,1.2711471]
[1772938423174,0.001,1943.8,1943.4,1.28640526]
[1772938423378,0.001,1943.8,1943.5,1.2711471]
[1772938425375,0.001,1943.8,1943.5,2.5574276]
[1772938426080,0.00153886,1944.0,1943.6,1.2711471]
[1772938426776,1.28567755,1944.5,1943.6,1.2711471]
[1772938427766,5.1427102,1944.6,1943.7,1.28620671]
[1772938428089,5.1427102,1944.6,1943.8,1.2711471]
[1772938429889,0.001,1944.5,1943.8,1.2711471]
[1772938430456,1.32872975,1944.5,1943.5,1.2711471]
[1772938430667,1.32872975,1944.5,1943.4,1.269]
[1772938430877,1.32872975,1944.5,1943.4,2.55539898]
[1772938431579,1.32872975,1944.5,1943.4,3.82654608]
[1772938432385,1.28574367,1944.4,1943.4,3.82654588]
[1772938432581,2.61347342,1944.4,1943.4,3.82654588]
[1772938433367,2.61347342,1944.4,1943.5,1.2711471]
[1772938433990,1.28574367,1944.4,1943.5,1.2711471]
[1772938434661,5.14397469,1944.5,1943.6,2.55741999]
[1772938434884,5.14397469,1944.5,1943.7,1.2711471]
[1772938435089,1.28667755,1944.5,1943.7,1.2711471]
[1772938436786,1.28667755,1944.5,1943.8,2.55728764]
[1772938437386,1.28667755,1944.5,1943.9,1.2711471]
[1772938437592,0.001,1944.5,1943.9,1.2711471]
[1772938439087,0.001,1944.5,1944.0,1.28600823]
[1772938439288,0.001,1944.5,1944.1,1.2711471]
[1772938439491,5.14292729,1945.0,1944.2,1.2711471]
[1772938439492,1.2868859,1945.0,1944.2,1.2711471]
[1772938439682,1.2868859,1945.0,1944.3,1.2711471]
[1772938440192,1.2868859,1945.0,1944.2,1.26]
[1772938441307,0.00153886,1945.0,1944.4,1.2711471]
[1772938441860,1.32772975,1945.8,1944.4,1.2711471]
[1772938442061,2.61259775,1945.8,1944.4,1.2711471]
[1772938442391,0.001,1944.9,1944.4,1.2711471]
[1772938442595,1.284868,1945.8,1944.4,1.44499014]
[1772938443098,5.1403764,1946.0,1944.6,1.44499014]
[1772938443398,6.70285274,1946.0,1944.6,1.44499014]
[1772938444864,1.56247634,1945.9,1944.6,1.44499014]
[1772938445162,1.56247634,1945.6,1944.6,1.44499014]
[1772938445361,2.84749304,1945.5,1944.4,1.28574367]
[1772938445570,1.2850167,1945.5,1944.4,1.28574367]
[1772938445767,2.84749304,1945.5,1944.4,1.28574367]
[1772938445963,2.84749304,1945.5,1944.4,2.73073381]
[1772938446472,1.56247634,1945.3,1944.1,5.28198739]
[1772938446679,1.56247634,1945.3,1944.0,0.00153886]
[1772938447005,1.56247634,1945.0,1944.0,0.00153886]
[1772938447372,1.56247634,1944.8,1944.0,0.00153886]
[1772938447603,1.56247634,1944.4,1943.8,0.0011]
[1772938448394,1.56247634,1944.7,1943.8,0.0011]
[1772938449704,1.28561143,1944.6,1943.9,1.44609014]
[1772938450119,1.28561143,1944.6,1943.9,0.0011]
[1772938450327,2.84808777,1944.6,1943.9,0.0011]
[1772938450507,1.28551518,1944.8,1943.9,1.44609014]
[1772938450710,2.84799152,1944.8,1943.9,0.0011]
[1772938451618,5.14293655,1945.0,1943.9,1.44609014]
[1772938451818,6.94110559,1945.0,1944.0,1.28600823]
[1772938452004,8.50358193,1945.0,1943.9,2.7321136]
[1772938452533,3.36218424,1945.0,1943.9,2.7321136]
[1772938453822,1.28541313,1944.9,1943.9,2.7321136]
[1772938454023,1.28541313,1944.9,1944.0,1.44499014]
[1772938454630,1.28541313,1944.9,1944.0,1.44609014]
[1772938456113,1.28541313,1944.9,1944.1,1.28594208]
[1772938456730,1.56247634,1944.8,1944.0,0.0041]
[1772938457532,1.56247634,1944.6,1943.9,0.0011]
[1772938458109,1.28567755,1944.5,1943.9,0.0011]
[1772938459505,1.56247634,1945.7,1944.1,1.44499014]
[1772938459715,2.84742699,1945.6,1944.1,1.44499014]
[1772938460338,2.84742699,1945.6,1944.3,1.44499014]
[1772938461529,2.84742699,1945.6,1944.5,1.44499014]
[1772938462224,2.84742699,1945.6,1944.6,1.28561143]
[1772938462928,1.56247634,1945.5,1944.5,2.73066741]
[1772938463099,1.56247634,1945.5,1944.4,2.52872524]
[1772938463304,1.87291616,1945.5,1944.4,2.52872524]
[1772938464625,1.28508275,1945.4,1944.4,3.97371538]
[1772938464825,1.28508275,1945.4,1944.5,1.44499014]
[1772938466618,6.70205288,1945.7,1944.6,2.73060157]
[1772938467133,1.91322104,1945.6,1944.5,1.44499014]
[1772938467316,2.68877059,1945.6,1944.5,1.44499014]
[1772938467511,1.56247634,1945.6,1944.5,1.44499014]
[1772938467738,1.56247634,1945.4,1944.5,1.44499014]
[1772938468038,0.001,1945.3,1944.5,1.44499014]
[1772938469407,1.28614882,1945.3,1944.6,1.28561143]
[1772938469604,0.001,1945.3,1944.7,1.44499014]
[1772938471734,0.001,1945.3,1944.8,1.28547922]
[1772938472337,0.001,1945.3,1944.8,2.85641785]
[1772938472539,0.001,1945.3,1944.9,1.57093863]
[1772938473112,1.28492682,1945.7,1944.9,1.57093863]
[1772938473414,2.84891852,1945.8,1944.9,1.57093863]
[1772938473610,1.56407704,1945.7,1944.7,1.28549254]
[1772938473817,1.28495065,1945.6,1944.7,2.85643117]
[1772938475918,1.28495065,1945.6,1944.8,1.57093863]
[1772938477630,1.28495065,1945.6,1945.0,1.57093863]
[1772938477831,1.28495065,1945.6,1944.7,2.85643117]
[1772938477832,2.84902769,1945.6,1944.7,2.85643117]
[1772938478033,2.84902769,1945.6,1944.8,1.57093863]
[1772938479348,1.56407704,1945.5,1943.9,0.0011]
[1772938479649,1.56407704,1945.5,1944.2,1.57093863]
[1772938479650,1.92911228,1945.5,1944.2,1.57093863]
[1772938479947,2.84915979,1945.4,1944.8,0.0011]
[1772938480340,1.56407704,1945.3,1944.7,0.0011]
[1772938480542,1.92911228,1945.3,1944.7,0.0011]
[1772938480922,1.56407704,1945.2,1944.7,0.0011]
[1772938481340,1.92911228,1945.2,1944.7,0.0011]
[1772938481545,1.56407704,1945.1,1944.7,0.0011]
[1772938482551,2.84942408,1945.0,1944.5,0.0011]
[1772938483645,1.56407704,1944.9,1944.5,0.0011]
[1772938485154,1.56407704,1944.7,1944.0,0.00263886]
[1772938485358,1.72474353,1944.8,1943.8,0.0011]
[1772938485359,1.79816904,1944.3,1943.8,0.0011]
[1772938485524,1.79816904,1944.3,1943.5,1.0]
[1772938485525,1.92911228,1944.2,1943.5,1.0]
[1772938485727,1.56407704,1944.2,1943.5,1.0]
[1772938487260,1.28594208,1944.1,1943.5,1.0]
[1772938487470,1.56407704,1944.5,1943.6,1.57093863]
[1772938487670,1.28570029,1944.5,1943.6,1.57093863]
[1772938488567,2.84977733,1944.5,1943.6,1.57093863]
[1772938489233,2.84977733,1944.5,1943.6,2.85717298]
[1772938490869,1.56407704,1944.8,1943.7,1.57093863]
[1772938491167,1.28567755,1944.5,1943.7,2.85709949]
[1772938491861,1.56407704,1944.4,1943.4,2.85730656]
[1772938492364,1.56407704,1944.4,1943.6,0.003]
[1772938493265,2.84988684,1944.3,1943.7,0.0011]
[1772938494973,1.56407704,1944.2,1943.7,0.0011]
[1772938495464,1.28594208,1944.1,1943.7,0.0011]
[1772938496851,0.001,1944.4,1943.8,1.57093863]
[1772938497054,19.041,1945.5,1944.2,1.57093863]
[1772938497055,0.001,1945.5,1944.2,1.57093863]
[1772938497363,0.001,1945.5,1944.5,1.28567755]
[1772938497673,0.001,1945.5,1944.6,1.57093863]
[1772938498459,0.001,1945.5,1944.8,1.57093863]
[1772938499482,0.001,1945.5,1944.9,1.28541313]
[1772938499664,0.001,1945.5,1945.0,1.57093863]
[1772938499850,0.001,1945.5,1945.1,2.79693863]
[1772938500051,0.001,1945.5,1945.1,1.226]
[1772938500253,1.56507704,1945.5,1944.2,6.71418967]
[1772938500453,1.56407704,1945.3,1944.3,1.2858098]
[1772938500766,1.56407704,1945.3,1944.3,2.85674843]
[1772938502077,1.28521488,1945.2,1944.3,2.85674843]
[1772938502866,0.001,1945.5,1944.4,1.66111535]
[1772938503258,0.001,1945.9,1944.5,1.66111535]
[1772938503458,1.28575401,1945.9,1944.5,1.66111535]
[1772938503763,1.28575401,1945.9,1944.3,1.2858098]
[1772938503764,0.34522132,1946.0,1944.9,1.66111535]
[1772938503969,1.62991742,1946.0,1945.2,1.28521488]
[1772938504368,1.62991742,1946.0,1945.1,2.94635165]
[1772938504769,1.62991742,1946.0,1945.1,2.94639369]
[1772938504957,1.62991742,1946.0,1945.0,1.228]
[1772938505162,3.41515698,1946.0,1945.0,1.228]
[1772938505659,0.001,1945.9,1945.1,1.66111535]
[1772938505968,0.001,1945.9,1945.3,1.66111535]
[1772938508084,0.00153886,1946.0,1945.5,1.66111535]
[1772938508385,1.28459013,1946.2,1945.3,1.2851048]
[1772938508767,1.28459013,1946.2,1945.1,1.66111535]
[1772938508973,1.28459013,1946.2,1945.1,2.94634833]
[1772938510463,1.28459013,1946.2,1945.2,1.66111535]
[1772938511358,3.06982969,1946.2,1945.2,1.66111535]
[1772938512958,3.06982969,1946.2,1945.3,1.28514882]
[1772938514184,3.06982969,1946.2,1945.2,2.94627987]
[1772938514993,1.28459013,1946.2,1945.3,1.66111535]
[1772938516694,1.78523956,1946.1,1945.0,2.94798321]
[1772938517063,3.06992609,1946.0,1945.1,2.51926541]
[1772938519389,3.06992609,1946.0,1945.0,2.94907465]
[1772938519581,3.06992609,1946.0,1945.1,1.234]
[1772938521967,3.06992609,1946.0,1945.1,2.51927753]
[1772938522167,3.06992609,1946.0,1945.1,1.234]
[1772938522599,3.06992609,1946.0,1945.1,2.51927519]
[1772938522775,1.78523956,1945.9,1945.1,1.234]
[1772938522974,1.78523956,1945.9,1945.0,1.28797179]
[1772938523906,1.28481858,1945.8,1945.0,0.00263886]
[1772938524506,3.07005814,1945.8,1945.0,0.00263886]
[1772938525778,3.07005814,1945.8,1945.0,1.66375421]
[1772938526403,5.13927433,1946.0,1945.2,1.66111535]
[1772938526404,5.13885568,1946.0,1945.2,1.66111535]
[1772938528411,1.28568653,1946.1,1945.3,1.66111535]
[1772938530426,0.001,1945.9,1945.3,1.66111535]
[1772938531326,0.001,1945.9,1945.3,2.94620948]
[1772938532224,0.001,1945.9,1945.4,1.66111535]
[1772938539407,1.76576942,1945.9,1945.2,2.98316162]
[1772938539623,1.76576942,1945.9,1945.2,2.98314568]
[1772938539795,1.76576942,1945.9,1945.3,1.69685694]
[1772938539995,0.001,1945.9,1945.3,1.69685694]
[1772938541727,0.001,1945.9,1945.2,0.0011]